fUST/lending_fUST_20260611
["ID","MTS","AMOUNT","RATE_DAILY","PERIOD"]
[424745204,1781119843000,-500.0,0.00021917,2]
[424745205,1781119843000,-500.0,0.00021917,2]
[424745203,1781119843000,-500.0,0.00021917,2]
[424745206,1781119843000,-500.0,0.00021917,2]
[424745208,1781119843000,-500.0,0.00021917,2]
[424745207,1781119843000,-500.0,0.00021917,2]
[424745209,1781119843000,-500.0,0.00021917,2]
[424745196,1781119843000,-445.96003784,0.00021917,2]
[424745241,1781119844000,-428.08962781,0.00021917,2]
[424745240,1781119844000,-382.95174154,0.00017877,6]
[424745242,1781119844000,-190.40443428,0.00021917,2]
[424745269,1781119846000,-151.0,0.00021917,2]
[424745262,1781119846000,-502.12887757,0.00021917,2]
[424745261,1781119846000,-500.0,0.00021917,2]
[424745252,1781119846000,-500.0,0.00021917,2]
[424745260,1781119846000,-500.0,0.00021917,2]
[424745255,1781119846000,-481.069879,0.00021917,2]
[424745263,1781119846000,-153.446093,0.00021917,2]
[424745257,1781119846000,-500.0,0.00021917,2]
[424745258,1781119846000,-589.26627358,0.00021917,2]
[424745254,1781119846000,-481.069879,0.00021917,2]
[424745253,1781119846000,-481.069879,0.00021917,2]
[424745251,1781119846000,-500.0,0.00021917,2]
[424745250,1781119846000,-502.26422408,0.00021917,2]
[424745259,1781119846000,-502.3036206,0.00021917,2]
[424745249,1781119846000,-500.0,0.00021917,2]
[424745247,1781119846000,-1416.0,0.00020991,2]
[424745248,1781119846000,-309.59556572,0.00021917,2]
[424745270,1781119846000,-500.76081231,0.00021917,2]
[424745256,1781119846000,-481.069879,0.00021917,2]
[424745266,1781119846000,-500.59310807,0.00021917,2]
[424745282,1781119846000,-500.0,0.00021917,2]
[424745264,1781119846000,-500.0,0.00021917,2]
[424745287,1781119846000,-206.342317,0.00021917,2]
[424745286,1781119846000,-206.342317,0.00021917,2]
[424745284,1781119846000,-206.342317,0.00021917,2]
[424745278,1781119846000,-500.0,0.00021917,2]
[424745277,1781119846000,-580.3199576,0.00021917,2]
[424745281,1781119846000,-500.0,0.00021917,2]
[424745280,1781119846000,-500.0,0.00021917,2]
[424745275,1781119846000,-500.0,0.00021917,2]
[424745285,1781119846000,-557.97,0.00021917,2]
[424745279,1781119846000,-500.0,0.00021917,2]
[424745276,1781119846000,-52.5900424,0.00021917,2]
[424745271,1781119846000,-500.0,0.00021917,2]
[424745265,1781119846000,-500.0,0.00021917,2]
[424745268,1781119846000,-500.0,0.00021917,2]
[424745267,1781119846000,-151.0,0.00021917,2]
[424745273,1781119846000,-500.0,0.00021917,2]
[424745272,1781119846000,-151.0,0.00021917,2]
[424745283,1781119846000,-206.342317,0.00021917,2]
[424745274,1781119846000,-500.0,0.00021917,2]
[424745294,1781119847000,-1853.35563934,0.00021917,2]
[424745293,1781119847000,-501.91404306,0.00021917,2]
[424745291,1781119847000,-502.42419336,0.00021917,2]
[424745292,1781119847000,-500.0,0.00021917,2]
[424745289,1781119847000,-501.53321163,0.00021917,2]
[424745288,1781119847000,-500.0,0.00021917,2]
[424745290,1781119847000,-500.0,0.00021917,2]
[424745295,1781119891000,-500.0,0.00012876,2]
[424745296,1781119891000,305.22498395,0.00020803,120]
[424745297,1781119891000,232.50872264,0.00020803,120]
[424745300,1781119891000,305.22498395,0.00020803,120]
[424745299,1781119891000,305.22498395,0.00020803,120]
[424745301,1781119891000,305.22498395,0.00020803,120]
[424745303,1781119891000,305.22498395,0.00020803,120]
[424745302,1781119891000,305.22498395,0.00020803,120]
[424745298,1781119891000,305.22498395,0.00020803,120]
[424745304,1781119908000,-500.0,0.00013698,2]
[424745305,1781119924000,-347.6390407,0.00016145,2]
[424745306,1781119954000,228.20565533,0.00020803,120]
[424745307,1781120004000,152.61249196,0.00020803,120]
[424745308,1781120124000,152.61249195,0.00020803,120]
[424745356,1781121032000,-3098.2,0.00014219,2]
[424745364,1781121032000,-1712.34654064,0.00014363,2]
[424745362,1781121032000,-1901.8,0.00014219,2]
[424745471,1781121040000,-500.0,0.00016044,2]
[424745469,1781121040000,-500.0,0.00016044,2]
[424745479,1781121040000,-444.10450264,0.00016044,2]
[424745475,1781121040000,-500.0,0.00016044,2]
[424745477,1781121040000,-495.87708323,0.00016044,2]
[424745473,1781121040000,-500.0,0.00016044,2]
[424745480,1781121040000,-500.0,0.00016044,2]
[424745462,1781121040000,-570.87990805,0.00015724,2]
[424745467,1781121040000,-500.0,0.00016044,2]
[424745466,1781121040000,-500.0,0.00016044,2]
[424745456,1781121040000,-220.4903803,0.00015536,2]
[424745460,1781121040000,-210.73380479,0.00015724,2]
[424745454,1781121040000,-3287.65345936,0.00014363,2]
[424745458,1781121040000,-726.827378,0.00015647,2]
[424745482,1781121040000,-500.0,0.00016044,2]
[424745464,1781121040000,-505.5912567,0.00015979,2]
[424745484,1781121040000,-500.0,0.00016044,2]
[424745486,1781121040000,-500.0,0.00016044,2]
[424745487,1781121040000,-500.0,0.00016044,2]
[424745517,1781121040000,-348.20003433,0.00016145,2]
[424745514,1781121040000,-5644.0208659,0.00016067,2]
[424745519,1781121040000,-445.60247864,0.00016145,2]
[424745510,1781121040000,-500.0,0.00016044,2]
[424745503,1781121040000,-500.0,0.00016044,2]
[424745497,1781121040000,-500.0,0.00016044,2]
[424745506,1781121040000,-500.0,0.00016044,2]
[424745512,1781121040000,-5768.05565762,0.00016045,2]
[424745508,1781121040000,-500.0,0.00016044,2]
[424745501,1781121040000,-500.0,0.00016044,2]
[424745495,1781121040000,-500.0,0.00016044,2]
[424745499,1781121040000,-500.0,0.00016044,2]
[424745493,1781121040000,-500.0,0.00016044,2]
[424745491,1781121040000,-500.0,0.00016044,2]
[424745489,1781121040000,-500.0,0.00016044,2]
[424745505,1781121040000,-500.0,0.00016044,2]
[424745551,1781121041000,-300.0,0.00016467,2]
[424745553,1781121041000,-300.0,0.00016467,2]
[424745559,1781121041000,-300.0,0.00016467,2]
[424745560,1781121041000,-300.0,0.00016467,2]
[424745564,1781121041000,-151.5,0.00016519,2]
[424745557,1781121041000,-300.0,0.00016467,2]
[424745566,1781121041000,-151.5,0.00016519,2]
[424745576,1781121041000,-1602.083222,0.00017451,2]
[424745578,1781121041000,-339.85249716,0.00017969,2]
[424745567,1781121041000,-151.5,0.00016519,2]
[424745555,1781121041000,-300.0,0.00016467,2]
[424745562,1781121041000,-300.0,0.00016467,2]
[424745546,1781121041000,-300.0,0.00016467,2]
[424745530,1781121041000,-307.43151305,0.00016227,2]
[424745540,1781121041000,-300.0,0.00016467,2]
[424745542,1781121041000,-300.0,0.00016467,2]
[424745544,1781121041000,-300.0,0.00016467,2]
[424745538,1781121041000,-300.0,0.00016467,2]
[424745536,1781121041000,-300.0,0.00016467,2]
[424745534,1781121041000,-347.6390407,0.00016227,2]
[424745532,1781121041000,-352.69710121,0.00016227,2]
[424745569,1781121041000,-151.5,0.00016519,2]
[424745529,1781121041000,-366.8010386,0.00016171,2]
[424745527,1781121041000,-351.26900113,0.00016171,2]
[424745525,1781121041000,-358.85305102,0.00016171,2]
[424745522,1781121041000,-372.40810884,0.00016171,2]
[424745523,1781121041000,-300.38649614,0.00016171,2]
[424745547,1781121041000,-300.0,0.00016467,2]
[424745573,1781121041000,-600.0,0.00016795,2]
[424745549,1781121041000,-300.0,0.00016467,2]
[424745571,1781121041000,-215.04220334,0.00016519,2]
[424745628,1781121041000,-43748.12847055,0.00019219,2]
[424745625,1781121041000,-35387.70465493,0.00019219,2]
[424745621,1781121041000,-160.0,0.00019188,2]
[424745618,1781121041000,-250.0,0.0001917,2]
[424745620,1781121041000,-417.15472785,0.00019188,2]
[424745615,1781121041000,-1602.083222,0.0001892,2]
[424745623,1781121041000,-11648.0141195,0.00019219,2]
[424745612,1781121041000,-720.0,0.00018475,2]
[424745614,1781121041000,-807.6061,0.000186,2]
[424745609,1781121041000,-1602.083222,0.00018185,2]
[424745607,1781121041000,-5456.82715398,0.0001797,2]
[424745604,1781121041000,-1799.41551792,0.0001797,2]
[424745603,1781121041000,-500.0,0.00017969,2]
[424745610,1781121041000,-1216.18027683,0.00018282,6]
[424745629,1781121041000,-966295.19470858,0.00019219,2]
[424745580,1781121041000,-500.0,0.00017969,2]
[424745581,1781121041000,-500.0,0.00017969,2]
[424745597,1781121041000,-500.0,0.00017969,2]
[424745585,1781121041000,-500.0,0.00017969,2]
[424745592,1781121041000,-500.0,0.00017969,2]
[424745594,1781121041000,-500.0,0.00017969,2]
[424745583,1781121041000,-500.0,0.00017969,2]
[424745587,1781121041000,-500.0,0.00017969,2]
[424745589,1781121041000,-500.0,0.00017969,2]
[424745595,1781121041000,-500.0,0.00017969,2]
[424745601,1781121041000,-500.0,0.00017969,2]
[424745599,1781121041000,-500.0,0.00017969,2]
[424745590,1781121041000,-612.31391552,0.00017969,2]
[424745574,1781121041000,-212.737,0.0001708,2]
[424746211,1781121046000,-552.03546025,0.00019027,2]
[424746239,1781121047000,-624.19248492,0.00019219,2]
[424746237,1781121047000,-4447.96453975,0.00019027,2]
[424749250,1781121528000,5400.0,0.00024109,30]
[424749251,1781121691000,-5000.0,0.00012614,2]
[424749252,1781121708000,-827.47402407,0.00012741,2]
[424749253,1781121724000,-5000.0,0.00012614,2]
[424749254,1781121741000,-815.1745117,0.00012741,2]
[424749255,1781121758000,-5012.29951237,0.00013,2]
[424749278,1781122231000,-500.0,0.00014999,2]
[424749293,1781122231000,-1212.16987136,0.00015,2]
[424749266,1781122231000,-152.0,0.0001287,2]
[424749265,1781122231000,-4848.0,0.0001287,2]
[424749269,1781122231000,-500.0,0.00014849,2]
[424749267,1781122231000,-123.06384992,0.00013,2]
[424749268,1781122231000,-6288.18493498,0.00013,2]
[424749271,1781122231000,-500.0,0.00014849,2]
[424749270,1781122231000,-500.0,0.00014849,2]
[424749282,1781122231000,-221.76412036,0.00014999,2]
[424749284,1781122231000,-500.0,0.00014999,2]
[424749274,1781122231000,-500.0,0.00014999,2]
[424749273,1781122231000,-500.0,0.00014849,2]
[424749272,1781122231000,-500.0,0.00014849,2]
[424749286,1781122231000,-417.52103665,0.00014999,2]
[424749288,1781122231000,-500.0,0.00014999,2]
[424749276,1781122231000,-500.0,0.00014999,2]
[424749290,1781122231000,-1300.95598399,0.00015,2]
[424749333,1781122239000,-5000.0,0.00012741,2]
[424749334,1781122239000,-1325.21958991,0.00015,2]
[424749337,1781122239000,-500.0,0.00016464,2]
[424749336,1781122239000,-307.650428,0.00016385,2]
[424749335,1781122239000,-454.53537116,0.00015,2]
[424749351,1781122240000,-160.322468,0.00018816,2]
[424749338,1781122240000,-501.45884526,0.00016464,2]
[424749339,1781122240000,-876.44411714,0.00016959,2]
[424749343,1781122240000,-1000.0,0.00017745,2]
[424749344,1781122240000,-194.74170858,0.00017968,5]
[424749340,1781122240000,-252.59417666,0.00017006,2]
[424749342,1781122240000,-307.650428,0.00017532,2]
[424749341,1781122240000,-1062.36491,0.00017298,2]
[424749345,1781122240000,-501.23699303,0.00017969,2]
[424749346,1781122240000,-3117.0,0.00018,2]
[424749347,1781122240000,-330.4914287,0.00018221,6]
[424749349,1781122240000,-500.0,0.0001879,2]
[424749359,1781122240000,-38522.78542967,0.00018918,2]
[424749348,1781122240000,-801.041611,0.00018317,2]
[424749352,1781122240000,-205.75954034,0.00018844,2]
[424749365,1781122240000,-796.79517445,0.00018918,2]
[424749364,1781122240000,-500.0,0.00018918,2]
[424749362,1781122240000,-2075.00998034,0.00018918,2]
[424749361,1781122240000,-737.25397543,0.00018918,2]
[424749360,1781122240000,-17708.73550522,0.00018918,2]
[424749358,1781122240000,-73342.04559471,0.00018918,2]
[424749350,1781122240000,-500.0,0.0001879,2]
[424749356,1781122240000,-151.5,0.00018844,2]
[424749355,1781122240000,-349.70006729,0.00018844,2]
[424749354,1781122240000,-500.0,0.00018844,2]
[424749366,1781122240000,-1806.30804927,0.00018918,2]
[424749353,1781122240000,-292.52238375,0.00018844,2]
[424749357,1781122240000,-161038.66146984,0.00018918,2]
[424749386,1781122243000,-500.0,0.00018917,2]
[424749385,1781122243000,-381.73256275,0.00018917,2]
[424749388,1781122243000,-500.0,0.00018917,2]
[424749390,1781122243000,-500.0,0.00018917,2]
[424749389,1781122243000,-500.0,0.00018917,2]
[424749392,1781122243000,-500.0,0.00018917,2]
[424749393,1781122243000,-500.0,0.00018917,2]
[424749394,1781122243000,-500.0,0.00018917,2]
[424749395,1781122243000,-500.0,0.00018917,2]
[424749397,1781122243000,-500.0,0.00018917,2]
[424749396,1781122243000,-500.0,0.00018917,2]
[424749398,1781122243000,-500.0,0.00018917,2]
[424749399,1781122243000,-6003.47389068,0.00018918,2]
[424749387,1781122243000,-500.0,0.00018917,2]
[424749401,1781122243000,-54617.91351637,0.00018918,2]
[424749402,1781122243000,-10000.05934043,0.00018918,2]
[424749403,1781122243000,-1990.70963771,0.00018918,2]
[424749391,1781122243000,-500.0,0.00018917,2]
[424749400,1781122243000,-289.52349796,0.00018917,2]
[424749404,1781122244000,-2512.25604105,0.00018918,2]
[424749417,1781122247000,-62308.94328927,0.00018918,2]
[424749418,1781122247000,-355.3,0.00018918,2]
[424749416,1781122247000,-1095.21235212,0.00018918,2]
[424749415,1781122247000,-4249.40327599,0.00018918,2]
[424749419,1781122247000,-1565.81672411,0.00018918,2]
[424749422,1781122284000,280.27537911,0.00020835,110]
[424749421,1781122284000,280.27537911,0.00020835,110]
[424749420,1781122284000,280.27537911,0.00020835,110]
[424749423,1781122322000,520.69804631,0.000233,90]
[424749440,1781123431000,-5000.0,0.00013294,2]
[424749442,1781123431000,-167.596179,0.00017598,2]
[424749448,1781123431000,-2802.6493872,0.00018,2]
[424749446,1781123431000,-157.50233741,0.00017999,2]
[424749444,1781123431000,-531.182455,0.00017963,2]
[424749452,1781123432000,-2251.31959154,0.00018,2]
[424749454,1781123432000,-698.15084257,0.00018,2]
[424749710,1781123438000,-162.17747071,0.000186,2]
[424749717,1781123438000,-500.0,0.00018717,2]
[424749716,1781123438000,-500.0,0.00018717,2]
[424749715,1781123438000,-367.89786424,0.00018717,2]
[424749711,1781123438000,-163.13484813,0.000186,2]
[424749713,1781123438000,-4984.77794615,0.00018618,2]
[424749714,1781123438000,-62.27075425,0.00018618,2]
[424749704,1781123438000,-922.39329169,0.00018,2]
[424749712,1781123438000,-163.13484813,0.000186,2]
[424749708,1781123438000,-161.90517182,0.000186,2]
[424749707,1781123438000,-161.90517182,0.000186,2]
[424749705,1781123438000,-160.42395173,0.000186,2]
[424749706,1781123438000,-160.42395173,0.000186,2]
[424749703,1781123438000,-5000.0,0.00013161,2]
[424749709,1781123438000,-162.17747071,0.000186,2]
[424749718,1781123438000,-500.0,0.00018717,2]
[424749724,1781123438000,-500.0,0.00018717,2]
[424749719,1781123438000,-500.0,0.00018717,2]
[424749736,1781123438000,-952.97724851,0.00018718,2]
[424749732,1781123438000,-3885.45215023,0.00018718,2]
[424749730,1781123438000,-600.0,0.00018717,2]
[424749734,1781123438000,-2536.51378436,0.00018718,2]
[424749731,1781123438000,-21072.49902058,0.00018718,2]
[424749733,1781123438000,-22915.02475002,0.00018718,2]
[424749735,1781123438000,-2761.43621564,0.00018718,2]
[424749729,1781123438000,-500.0,0.00018717,2]
[424749728,1781123438000,-500.0,0.00018717,2]
[424749727,1781123438000,-500.0,0.00018717,2]
[424749725,1781123438000,-500.0,0.00018717,2]
[424749726,1781123438000,-500.0,0.00018717,2]
[424749723,1781123438000,-500.0,0.00018717,2]
[424749722,1781123438000,-602.66644857,0.00018717,2]
[424749721,1781123438000,-500.0,0.00018717,2]
[424749720,1781123438000,-500.0,0.00018717,2]
[424749740,1781123440000,-2169.80114619,0.00018718,2]
[424749742,1781123440000,-8221.01872154,0.00018718,2]
[424749741,1781123440000,-1019.05201729,0.00018718,2]
[424749743,1781123440000,-1485.55645327,0.00018718,2]
[424749777,1781123443000,-468.942,0.00018718,2]
[424749778,1781123443000,-917.73344942,0.00018718,2]
[424749776,1781123443000,-813.5,0.00018718,2]
[424749784,1781123446000,-455.82,0.00018708,3]
[424749789,1781123446000,-6719.36875692,0.00018718,2]
[424749786,1781123446000,-63614.1874677,0.00018718,2]
[424749788,1781123446000,-276.5150003,0.00018718,2]
[424749787,1781123446000,-46355.38751532,0.00018718,2]
[424749785,1781123446000,-409215.51388602,0.00018718,2]
[424749827,1781124632000,-739.965811,0.00015305,2]
[424749828,1781124632000,-265.591228,0.00017047,2]
[424749829,1781124632000,-1417.0040295,0.00017218,2]
[424749826,1781124632000,-474.05217121,0.00015305,2]
[424749825,1781124632000,-5000.0,0.00015152,2]
[424749830,1781124632000,-433.4581101,0.00017339,2]
[424749836,1781124632000,-537.82605577,0.00018518,2]
[424749834,1781124632000,-326.92,0.00018517,2]
[424749833,1781124632000,-4794.12134714,0.00018418,2]
[424749832,1781124632000,-297.701,0.00018,2]
[424749835,1781124632000,-47089.96379353,0.00018518,2]
[424749837,1781124632000,-1575.4296774,0.00018518,2]
[424749831,1781124632000,-292.60068193,0.00018,2]
[424749911,1781124638000,-91302.31937515,0.00018518,2]
[424749908,1781124638000,-35708.28065079,0.00018518,2]
[424749915,1781124638000,-227656.38642149,0.00018518,2]
[424749913,1781124638000,-41189.48418494,0.00018518,2]
[424750439,1781124643000,-21399.50150064,0.00018518,2]
[424750437,1781124643000,-5000.0,0.00018333,2]
[424750756,1781124646000,-5827.47402407,0.00018518,2]
[424752602,1781125291000,-686.677406,0.00012614,2]
[424752637,1781125833000,-480.177,0.00011876,2]
[424752705,1781125838000,-4519.823,0.00011876,2]
[424752706,1781125838000,-827.47402407,0.00011996,2]
[424752708,1781125838000,-5012.29951237,0.00013,2]
[424752716,1781125838000,-265.591228,0.00017623,2]
[424752710,1781125838000,-162.0,0.00016466,3]
[424752719,1781125838000,-165.1713,0.00018231,2]
[424752712,1781125838000,-223.4415515,0.00017531,2]
[424752717,1781125838000,-288.699,0.0001805,2]
[424752721,1781125838000,-165.59332112,0.00018518,2]
[424752714,1781125838000,-500.0,0.0001754,2]
[424752727,1781125838000,-500.0,0.00018935,2]
[424752741,1781125838000,-500.0,0.00018936,2]
[424752734,1781125838000,-283.65755933,0.00018935,2]
[424752732,1781125838000,-500.0,0.00018935,2]
[424752736,1781125838000,-151.5,0.00018936,2]
[424752723,1781125838000,-776.0,0.00018718,2]
[424752737,1781125838000,-151.5,0.00018936,2]
[424752725,1781125838000,-500.0,0.00018935,2]
[424752729,1781125838000,-500.0,0.00018935,2]
[424752730,1781125838000,-500.0,0.00018935,2]
[424752784,1781125839000,-954.0,0.00019036,2]
[424752788,1781125839000,-954.0,0.00019036,2]
[424752778,1781125839000,-954.0,0.00019036,2]
[424752776,1781125839000,-954.0,0.00019036,2]
[424752770,1781125839000,-954.0,0.00019036,2]
[424752766,1781125839000,-860.967326,0.00018988,2]
[424752772,1781125839000,-954.0,0.00019036,2]
[424752768,1781125839000,-954.0,0.00019036,2]
[424752761,1781125839000,-277.71993064,0.00018936,2]
[424752780,1781125839000,-954.0,0.00019036,2]
[424752758,1781125839000,-500.0,0.00018936,2]
[424752756,1781125839000,-500.0,0.00018936,2]
[424752754,1781125839000,-500.0,0.00018936,2]
[424752749,1781125839000,-500.0,0.00018936,2]
[424752751,1781125839000,-500.0,0.00018936,2]
[424752747,1781125839000,-500.0,0.00018936,2]
[424752743,1781125839000,-500.0,0.00018936,2]
[424752745,1781125839000,-500.0,0.00018936,2]
[424752764,1781125839000,-4525.56569619,0.00018936,2]
[424752786,1781125839000,-954.0,0.00019036,2]
[424752774,1781125839000,-954.0,0.00019036,2]
[424752796,1781125839000,-954.0,0.00019036,2]
[424752818,1781125839000,-457.37325161,0.00019108,2]
[424752828,1781125839000,-471990.58413768,0.0001911,2]
[424752790,1781125839000,-954.0,0.00019036,2]
[424752817,1781125839000,-500.0,0.00019108,2]
[424752820,1781125839000,-500.0,0.00019108,2]
[424752813,1781125839000,-975.50097934,0.00019036,2]
[424752815,1781125839000,-500.0,0.00019108,2]
[424752824,1781125839000,-500.0,0.00019108,2]
[424752822,1781125839000,-500.0,0.00019108,2]
[424752811,1781125839000,-954.0,0.00019036,2]
[424752826,1781125839000,-500.0,0.00019108,2]
[424752809,1781125839000,-954.0,0.00019036,2]
[424752807,1781125839000,-954.0,0.00019036,2]
[424752794,1781125839000,-954.0,0.00019036,2]
[424752801,1781125839000,-954.0,0.00019036,2]
[424752792,1781125839000,-954.0,0.00019036,2]
[424752782,1781125839000,-954.0,0.00019036,2]
[424752799,1781125839000,-954.0,0.00019036,2]
[424752805,1781125839000,-954.0,0.00019036,2]
[424752803,1781125839000,-954.0,0.00019036,2]
[424752797,1781125839000,-954.0,0.00019036,2]
[424753005,1781125841000,-4779.28522984,0.0001911,2]
[424753003,1781125841000,-164.02470756,0.00018935,2]
[424753284,1781125843000,-151.5,0.00018935,2]
[424753282,1781125843000,-151.5,0.00018935,2]
[424753293,1781125843000,-4334.12932627,0.0001911,2]
[424753286,1781125843000,-187.69323223,0.00018935,2]
[424753290,1781125843000,-973.27240735,0.0001911,2]
[424753288,1781125843000,-2702.87502354,0.0001911,2]
[424753634,1781125846000,-43339.25422593,0.0001911,2]
[424753763,1781126010000,14993.45384309,0.00020883,120]
[424753764,1781126633000,153.0,0.00020911,120]
[424753765,1781126635000,153.0,0.00021911,120]
[424753766,1781126682000,168.0,0.00020918,120]
[424753767,1781126683000,168.0,0.00021918,120]
[424753768,1781126732000,194.0,0.00020918,120]
[424753769,1781126733000,194.0,0.00021918,120]
[424753770,1781126734000,196.0,0.00022918,120]
[424753771,1781126841000,151.0,0.00020918,120]
[424753772,1781126843000,151.0,0.00021918,120]
[424753773,1781126982000,158.0,0.00020918,120]
[424753774,1781126984000,158.0,0.00021918,120]
[424753784,1781127032000,-1000.0,0.00014003,2]
[424753786,1781127032000,-2044.86698273,0.00014306,2]
[424753785,1781127032000,-263.0,0.00014305,2]
[424753783,1781127032000,-307.650428,0.00013982,2]
[424753782,1781127032000,-1102.724191,0.00013699,2]
[424753781,1781127032000,-200.0,0.00013562,2]
[424753780,1781127032000,-4800.0,0.00013562,2]
[424753828,1781127038000,-1000.0,0.00014163,2]
[424753830,1781127038000,-1268.88875421,0.00014163,2]
[424753908,1781127039000,-500.0,0.00014559,2]
[424753909,1781127039000,-500.0,0.00014559,2]
[424753911,1781127039000,-500.0,0.00014559,2]
[424753913,1781127039000,-500.0,0.00014559,2]
[424753918,1781127039000,-500.0,0.00014559,2]
[424753920,1781127039000,-500.0,0.00014559,2]
[424753923,1781127039000,-500.0,0.00014559,2]
[424753927,1781127039000,-500.0,0.00014559,2]
[424753924,1781127039000,-500.0,0.00014559,2]
[424753939,1781127039000,-157.75159254,0.00014559,2]
[424753941,1781127039000,-165.267406,0.00014627,2]
[424753937,1781127039000,-500.0,0.00014559,2]
[424753931,1781127039000,-500.0,0.00014559,2]
[424753943,1781127039000,-5824.65067584,0.00014664,2]
[424753935,1781127039000,-526.82276765,0.00014559,2]
[424753933,1781127039000,-500.0,0.00014559,2]
[424753906,1781127039000,-500.0,0.00014559,2]
[424753945,1781127039000,-165.87305339,0.00014737,2]
[424753947,1781127039000,-171.0684085,0.00014737,2]
[424753948,1781127039000,-157.7041358,0.00014737,2]
[424753950,1781127039000,-214.49454264,0.00014737,2]
[424753954,1781127039000,-500.0,0.00014762,2]
[424753962,1781127039000,-153.08983309,0.00014764,2]
[424753952,1781127039000,-176.71323853,0.00014737,2]
[424753929,1781127039000,-500.0,0.00014559,2]
[424753904,1781127039000,-500.0,0.00014559,2]
[424753887,1781127039000,-500.0,0.00014559,2]
[424753900,1781127039000,-500.0,0.00014559,2]
[424753964,1781127039000,-154.09509402,0.00014764,2]
[424753856,1781127039000,-5073.52335437,0.00014306,2]
[424753858,1781127039000,-500.0,0.00014559,2]
[424753860,1781127039000,-500.0,0.00014559,2]
[424753854,1781127039000,-2731.11124579,0.00014163,2]
[424753861,1781127039000,-500.0,0.00014559,2]
[424753863,1781127039000,-500.0,0.00014559,2]
[424753867,1781127039000,-500.0,0.00014559,2]
[424753865,1781127039000,-500.0,0.00014559,2]
[424753871,1781127039000,-500.0,0.00014559,2]
[424753869,1781127039000,-500.0,0.00014559,2]
[424753874,1781127039000,-500.0,0.00014559,2]
[424753873,1781127039000,-500.0,0.00014559,2]
[424753876,1781127039000,-500.0,0.00014559,2]
[424753878,1781127039000,-500.0,0.00014559,2]
[424753880,1781127039000,-500.0,0.00014559,2]
[424753884,1781127039000,-500.0,0.00014559,2]
[424753882,1781127039000,-500.0,0.00014559,2]
[424753886,1781127039000,-500.0,0.00014559,2]
[424753896,1781127039000,-553.15332222,0.00014559,2]
[424753898,1781127039000,-500.0,0.00014559,2]
[424753889,1781127039000,-500.0,0.00014559,2]
[424753891,1781127039000,-500.0,0.00014559,2]
[424753895,1781127039000,-500.0,0.00014559,2]
[424753893,1781127039000,-500.0,0.00014559,2]
[424753902,1781127039000,-500.0,0.00014559,2]
[424753960,1781127039000,-156.92671245,0.00014764,2]
[424753985,1781127039000,-172.86200586,0.00014764,2]
[424753956,1781127039000,-155.24091287,0.00014764,2]
[424754018,1781127039000,-183.36362584,0.00015442,2]
[424754022,1781127039000,-331.74610677,0.00015442,2]
[424754030,1781127039000,-353.42647706,0.00015442,2]
[424754024,1781127039000,-342.136817,0.00015442,2]
[424754026,1781127039000,-315.40827161,0.00015442,2]
[424754028,1781127039000,-428.98908529,0.00015442,2]
[424754032,1781127039000,-163.0498811,0.00015442,2]
[424754034,1781127039000,-665.0,0.00015447,2]
[424754036,1781127039000,-151.50060395,0.00015469,2]
[424754038,1781127039000,-310.48182573,0.00015469,2]
[424754042,1781127039000,-306.17966618,0.00015469,2]
[424754020,1781127039000,-191.33274327,0.00015442,2]
[424754043,1781127039000,-373.2759526,0.00015469,2]
[424754045,1781127039000,-312.75824512,0.00015469,2]